fUST/lending_fUST_20240110
["ID","MTS","AMOUNT","RATE_DAILY","PERIOD"]
[311008511,1704861040079,-500.0,0.00027397,2]
[311008512,1704861040088,-500.0,0.00027397,2]
[311008513,1704861040098,-507.19697366,0.00027397,2]
[311008514,1704861040109,-200.0,0.00027397,2]
[311008515,1704861040127,-500.0,0.00027397,2]
[311008516,1704861040137,-500.0,0.00027397,2]
[311008517,1704861040147,-220.0,0.00027397,2]
[311008518,1704861040158,-422.92781,0.00027397,2]
[311008519,1704861040168,-500.0,0.00027397,2]
[311008520,1704861040177,-577.97179821,0.00027397,2]
[311008521,1704861040186,-500.0,0.00027397,2]
[311008522,1704861040197,-500.83144537,0.00027397,2]
[311008523,1704861040206,-500.0,0.00027397,2]
[311008524,1704861040215,-458.33767617,0.00027397,2]
[311008525,1704861040225,-508.04241554,0.00027397,2]
[311008526,1704861040234,-500.0,0.00027397,2]
[311008527,1704861040243,-205.9414518,0.00027397,2]
[311008528,1704861040252,-501.04038744,0.00027397,2]
[311008529,1704861040260,-504.88994247,0.00027397,2]
[311008530,1704861040269,-500.0,0.00027397,2]
[311008531,1704861040278,-374.90889965,0.00027397,2]
[311008532,1704861040288,-500.0,0.00027397,2]
[311008533,1704861040297,-600.0,0.00027397,2]
[311008534,1704861040307,-615.83,0.00027397,2]
[311008535,1704861040317,-500.0,0.00027397,2]
[311008536,1704861040328,-512.20101338,0.00027397,2]
[311008537,1704861040337,-500.0,0.00027397,2]
[311008538,1704861040346,-500.0,0.00027397,2]
[311008539,1704861040356,-500.0,0.00027397,2]
[311008540,1704861040366,-501.05325605,0.00027397,2]
[311008541,1704861040376,-500.0,0.00027397,2]
[311008542,1704861040386,-202.48066592,0.00027397,2]
[311008543,1704861040395,-501.9969234,0.00027397,2]
[311008544,1704861040405,-500.0,0.00027397,2]
[311008545,1704861040415,-500.0,0.00027397,2]
[311008546,1704861040425,-501.29236031,0.00027397,2]
[311008547,1704861040434,-511.08306579,0.00027397,2]
[311008548,1704861040444,-500.0,0.00027397,2]
[311008549,1704861040454,-500.0,0.00027397,2]
[311008550,1704861040464,-500.0,0.00027397,2]
[311008551,1704861040474,-609.06835587,0.00027397,2]
[311008552,1704861040484,-573.13,0.00027397,2]
[311008553,1704861040494,-500.0,0.00027397,2]
[311008554,1704861040505,-524.95743224,0.00027397,2]
[311008555,1704861040515,-548.12370753,0.00027397,2]
[311008556,1704861040525,-500.0,0.00027397,2]
[311008557,1704861040534,-500.0,0.00027397,2]
[311008558,1704861040543,-500.0,0.00027397,2]
[311008559,1704861040553,-1498.32,0.00027397,2]
[311008560,1704861040562,-500.0,0.00027397,2]
[311008561,1704861040571,-500.0,0.00027397,2]
[311008562,1704861040581,-523.61602931,0.00027397,2]
[311008563,1704861040590,-503.20572082,0.00027397,2]
[311008564,1704861040599,-754.21,0.00027397,2]
[311008565,1704861040609,-500.0,0.00027397,2]
[311008566,1704861040620,-500.0,0.00027397,2]
[311008567,1704861040633,-500.0,0.00027397,2]
[311008568,1704861040642,-639.05775127,0.00027397,2]
[311008569,1704861040651,-504.57513467,0.00027397,2]
[311008570,1704861040661,-500.0,0.00027397,2]
[311008571,1704861040670,-500.0,0.00027397,2]
[311008572,1704861040679,-505.10410543,0.00027397,2]
[311008577,1704861040827,-500.0,0.00027397,2]
[311008578,1704861040836,-500.0,0.00027397,2]
[311008579,1704861040846,-500.0,0.00027397,2]
[311008580,1704861040855,-502.24919155,0.00027397,2]
[311008581,1704861040865,-516.09939381,0.00027397,2]
[311008582,1704861040874,-500.0,0.00027397,2]
[311008583,1704861040883,-500.0,0.00027397,2]
[311008584,1704861040892,-500.0,0.00027397,2]
[311008585,1704861040901,-500.0,0.00027397,2]
[311008586,1704861040910,-530.01295223,0.00027397,2]
[311008587,1704861040919,-880.12,0.00027397,2]
[311008588,1704861040929,-500.0,0.00027397,2]
[311008589,1704861040938,-500.0,0.00027397,2]
[311008590,1704861040947,-500.82578498,0.00027397,2]
[311008591,1704861040956,-626.68766984,0.00027397,2]
[311008592,1704861040965,-500.0,0.00027397,2]
[311008593,1704861040974,-336.37433785,0.00027397,2]
[311008594,1704861040984,-512.2979801,0.00027397,2]
[311008595,1704861040993,-500.0,0.00027397,2]
[311008596,1704861041002,-500.0,0.00027397,2]
[311008597,1704861041011,-502.45124352,0.00027397,2]
[311008598,1704861041021,-1774.81,0.00027397,2]
[311008599,1704861041030,-500.0,0.00027397,2]
[311008600,1704861041039,-500.0,0.00027397,2]
[311008601,1704861041049,-501.02339313,0.00027397,2]
[311008602,1704861041058,-210.62830424,0.00027397,2]
[311008603,1704861041068,-500.0,0.00027397,2]
[311008604,1704861041077,-393.61353688,0.00027397,2]
[311008626,1704861043338,-1821.85168105,0.0002146,2]
[311008628,1704861043348,-4711.08145103,0.00025557,2]
[311008629,1704861043357,-154.93802479,0.00027396,4]
[311008631,1704861043367,-1105.475793,0.00027397,2]
[311008633,1704861043376,-1105.475793,0.00027397,2]
[311008635,1704861043386,-1105.475793,0.00027397,2]
[311008637,1704861043395,-106.38646312,0.00027397,2]
[311008639,1704861043404,-502.83552207,0.00027397,2]
[311008641,1704861043412,-503.16131874,0.00027397,2]
[311008643,1704861043421,-501.12198462,0.00027397,2]
[311008645,1704861043430,-500.0,0.00027397,2]
[311008647,1704861043439,-20035.59365478,0.00027397,10]
[311008649,1704861043449,-500.0,0.00027397,2]
[311008651,1704861043458,-500.0,0.00027397,2]
[311008653,1704861043467,-1025.76,0.00027397,2]
[311008655,1704861043475,-500.0,0.00027397,2]
[311008657,1704861043484,-501.60375425,0.00027397,2]
[311008659,1704861043493,-500.0,0.00027397,2]
[311008661,1704861043502,-500.0,0.00027397,2]
[311008663,1704861043511,-1481.07,0.00027397,2]
[311008665,1704861043519,-500.0,0.00027397,2]
[311008667,1704861043528,-502.97512192,0.00027397,2]
[311008669,1704861043537,-500.61378219,0.00027397,2]
[311008671,1704861043546,-500.0,0.00027397,2]
[311008673,1704861043555,-515.78038111,0.00027397,2]
[311008674,1704861043564,-500.0,0.00027397,2]
[311008675,1704861043573,-500.0,0.00027397,2]
[311008676,1704861043581,-500.0,0.00027397,2]
[311008677,1704861043590,-522.09370799,0.00027397,2]
[311008678,1704861043599,-501.46967249,0.00027397,2]
[311008679,1704861043609,-502.37533265,0.00027397,2]
[311008680,1704861043618,-504.1082049,0.00027397,2]
[311008681,1704861043627,-503.49423838,0.00027397,2]
[311008682,1704861043637,-1728.88,0.00027397,2]
[311008683,1704861043646,-500.0,0.00027397,2]
[311008684,1704861043655,-500.0,0.00027397,2]
[311008685,1704861043664,-501.1581429,0.00027397,2]
[311008686,1704861043673,-500.0,0.00027397,2]
[311008687,1704861043682,-502.50749345,0.00027397,2]
[311008688,1704861043691,-502.47780367,0.00027397,2]
[311008689,1704861043700,-500.0,0.00027397,2]
[311008690,1704861043709,-500.0,0.00027397,2]
[311008691,1704861043718,-500.0,0.00027397,2]
[311008692,1704861043727,-510.22720106,0.00027397,2]
[311008693,1704861043736,-503.00030109,0.00027397,2]
[311008694,1704861043745,-500.0,0.00027397,2]
[311008695,1704861043754,-501.33305653,0.00027397,2]
[311008696,1704861043763,-502.88294829,0.00027397,2]
[311008697,1704861043772,-723.09,0.00027397,2]
[311008698,1704861043782,-515.06000901,0.00027397,2]
[311008699,1704861043791,-500.0,0.00027397,2]
[311008700,1704861043800,-506.5382968,0.00027397,2]
[311008701,1704861043809,-294.44703932,0.00027397,2]
[311008702,1704861043818,-503.20325283,0.00027397,2]
[311008703,1704861043827,-501.78053641,0.00027397,2]
[311008704,1704861043837,-500.0,0.00027397,2]
[311008705,1704861043846,-519.8,0.00027397,2]
[311008706,1704861043855,-500.0,0.00027397,2]
[311008707,1704861043864,-500.0,0.00027397,2]
[311008708,1704861043874,-500.0,0.00027397,2]
[311008709,1704861043883,-500.0,0.00027397,2]
[311008710,1704861043892,-500.0,0.00027397,2]
[311008711,1704861043902,-502.72683891,0.00027397,2]
[311008712,1704861043911,-500.0,0.00027397,2]
[311008713,1704861043921,-502.2715108,0.00027397,2]
[311008714,1704861043930,-500.0,0.00027397,2]
[311008715,1704861043939,-566.1607247,0.00027397,2]
[311008716,1704861043948,-500.0,0.00027397,2]
[311008717,1704861043957,-402.09100132,0.00027397,2]
[311008718,1704861043966,-500.0,0.00027397,2]
[311008719,1704861043975,-500.0,0.00027397,2]
[311008720,1704861043984,-517.01672452,0.00027397,2]
[311008721,1704861043993,-502.65996338,0.00027397,2]
[311008722,1704861044002,-501.51045553,0.00027397,2]
[311008723,1704861044011,-501.21999366,0.00027397,2]
[311008724,1704861044020,-1471.95,0.00027397,2]
[311008725,1704861044029,-500.0,0.00027397,2]
[311008726,1704861044038,-500.0,0.00027397,2]
[311008727,1704861044047,-500.0,0.00027397,2]
[311008728,1704861044056,-500.0,0.00027397,2]
[311008729,1704861044065,-501.10416106,0.00027397,2]
[311008730,1704861044074,-500.0,0.00027397,2]
[311008731,1704861044083,-640.87,0.00027397,2]
[311008732,1704861044092,-500.0,0.00027397,2]
[311008733,1704861044101,-500.0,0.00027397,2]
[311008734,1704861044111,-500.0,0.00027397,2]
[311008735,1704861044123,-500.0,0.00027397,2]
[311008736,1704861044133,-502.69223075,0.00027397,2]
[311008737,1704861044142,-500.0,0.00027397,2]
[311008738,1704861044151,-597.17,0.00027397,2]
[311008739,1704861044161,-500.0,0.00027397,2]
[311008740,1704861044170,-500.0,0.00027397,2]
[311008741,1704861044179,-2057.7,0.00027397,2]
[311008742,1704861044188,-2057.7,0.00027397,2]
[311008743,1704861044198,-2057.7,0.00027397,2]
[311008744,1704861044207,-500.0,0.00027397,2]
[311008745,1704861044218,-500.0,0.00027397,2]
[311008746,1704861044227,-221.12378611,0.00027397,2]
[311008747,1704861044236,-500.70399391,0.00027397,2]
[311008748,1704861044247,-1001.38259395,0.00027397,2]
[311008749,1704861044257,-502.44655997,0.00027397,2]
[311008750,1704861044266,-500.0,0.00027397,2]
[311008751,1704861044275,-506.2982467,0.00027397,2]
[311008752,1704861044286,-1000.0,0.00027397,5]
[311008753,1704861044295,-503.57217146,0.00027397,2]
[311008754,1704861044305,-500.66775379,0.00027397,2]
[311008755,1704861044314,-500.0,0.00027397,2]
[311008756,1704861044323,-501.29303316,0.00027397,2]
[311008757,1704861044332,-500.0,0.00027397,2]
[311008758,1704861044342,-501.3809648,0.00027397,2]
[311008759,1704861044351,-502.37025823,0.00027397,2]
[311008760,1704861044361,-500.0,0.00027397,2]
[311008761,1704861044371,-509.91820249,0.00027397,2]
[311008762,1704861044382,-503.59279333,0.00027397,2]
[311008763,1704861044391,-500.0,0.00027397,2]
[311008764,1704861044399,-500.0,0.00027397,2]
[311008765,1704861044408,-501.60891421,0.00027397,2]
[311008766,1704861044417,-500.0,0.00027397,2]
[311008767,1704861044426,-501.81180643,0.00027397,2]
[311008768,1704861044434,-500.0,0.00027397,2]
[311008769,1704861044443,-501.83111774,0.00027397,2]
[311008770,1704861044452,-506.65770087,0.00027397,2]
[311008771,1704861044461,-500.92873917,0.00027397,2]
[311008772,1704861044470,-500.0,0.00027397,2]
[311008773,1704861044479,-177.73517949,0.00027397,2]
[311008774,1704861044489,-562.16150847,0.00027397,2]
[311008775,1704861044498,-500.0,0.00027397,2]
[311008776,1704861044507,-500.30641269,0.00027397,2]
[311008777,1704861044516,-524.12489659,0.00027397,2]
[311008778,1704861044525,-501.8170574,0.00027397,2]
[311008779,1704861044534,-500.0,0.00027397,2]
[311008780,1704861044544,-197.06523186,0.00027397,2]
[311008781,1704861044554,-523.61,0.00027397,2]
[311008782,1704861044563,-214.31120607,0.00027397,2]
[311010218,1704861723481,200.0,0.00023073,7]
[311010221,1704862024242,200.0,0.0002304,7]
[311010268,1704862232079,-154.93802479,0.00019759,3]
[311010269,1704862232089,-187.2222,0.0001976,2]
[311010271,1704862232098,-1962.08977521,0.00019956,2]
[311010333,1704862238186,-5981.62204551,0.00019956,2]
[311010335,1704862238196,-9133.6343869,0.00019957,2]
[311010337,1704862238205,-2994.25505405,0.0002,2]
[311010339,1704862238215,-1464.84555445,0.00020546,2]
[311010341,1704862238224,-266.19065175,0.00020939,2]
[311010343,1704862238233,-676.96253794,0.00020939,2]
[311010345,1704862238242,-1195.09669838,0.0002094,2]
[311010347,1704862238250,-853.57612089,0.00020941,2]
[311010349,1704862238259,-4859.7,0.00020948,3]
[311010351,1704862238269,-4049.75,0.00020948,3]
[311010353,1704862238278,-3374.79,0.00020948,3]
[311010355,1704862238287,-20.0383537,0.00020958,2]
[311010357,1704862238298,-475.4,0.00020958,2]
[311010359,1704862238310,-15265.61810965,0.00020958,2]
[311010411,1704862241045,-8705.8164,0.00020958,2]
[311010412,1704862241057,-1649.22,0.00020958,2]
[311010453,1704862243157,-359.47311131,0.00020958,2]
[311010455,1704862243170,-549.64907263,0.00020958,2]
[311010460,1704862243213,-4758.0,0.00020958,2]
[311010557,1704863432742,-791.46551838,0.00015717,2]
[311010590,1704863441024,-673.38003607,0.00015717,2]
[311010591,1704863441035,-154.93802479,0.00018899,3]
[311010592,1704863441045,-168.72544848,0.000189,2]
[311010593,1704863441078,-359.03358026,0.000189,2]
[311010594,1704863441088,-177.668792,0.00019178,2]
[311010595,1704863441098,-178.419954,0.00019178,2]
[311010596,1704863441108,-187.2222,0.0001938,2]
[311010597,1704863441119,-1112.08388858,0.000195,2]
[311010598,1704863441130,-676.96253794,0.0002,2]
[311010599,1704863441141,-1195.09669838,0.0002,2]
[311010600,1704863441151,-853.57612089,0.0002,2]
[311010601,1704863441162,-266.19065175,0.0002021,2]
[311010602,1704863441172,-2994.25505405,0.00020211,2]
[311010603,1704863441183,-1995.07904351,0.0002024,2]
[311010604,1704863441195,-325.04831256,0.00020957,2]
[311010621,1704863443331,-406.76222224,0.00020957,2]
[311010622,1704863443341,-200.0,0.00020958,2]
[311010623,1704863443350,-1772.23777776,0.00020958,2]
[311010625,1704863446646,-676.96253794,0.00020209,2]
[311010626,1704863446656,-52.84893138,0.00020958,2]
[311010644,1704863741346,-159.31921027,0.00015717,2]
[311010645,1704863741377,-154.93802479,0.00018853,3]
[311010646,1704863741405,-976.0012481,0.00018854,2]
[311010647,1704863741433,-5950.25473392,0.00018861,2]
[311010648,1704863741462,-401.83935249,0.000189,2]
[311010649,1704863761566,191.29586687,0.0003,120]
[311010650,1704863782845,-154.93802479,0.00018861,3]
[311010651,1704863782874,-1044.03961763,0.00018861,2]
[311010656,1704864139167,2947.0,0.00029,30]
[311010738,1704864638473,-154.93802479,0.00018861,3]
[311010740,1704864638483,-2612.9024984,0.00019718,2]
[311010743,1704864638499,-15202.0371025,0.00019718,2]
[311010745,1704864638508,-187.2222,0.00019722,2]
[311010747,1704864638518,-853.57612089,0.0002,2]
[311010763,1704864638644,-676.96253794,0.0002,2]
[311010765,1704864638654,-266.19065175,0.0002,2]
[311010767,1704864638663,-1195.09669838,0.0002,2]
[311010769,1704864638673,-2280.70428322,0.00020956,2]
[311010771,1704864638682,-322.26268464,0.00020956,2]
[311010772,1704864638691,-365.9052674,0.00020956,2]
[311010774,1704864638702,-7538.88181134,0.00020958,2]
[311010784,1704864641281,-2007.4565674,0.00020958,2]
[311010785,1704864641347,-10000.0,0.00020958,2]
[311010860,1704865324933,200.0,0.00021776,7]
[311010928,1704865832780,-154.93802479,0.00018895,3]
[311010930,1704865832791,-250.0,0.00018899,2]
[311010932,1704865832800,-267.89290166,0.000189,2]
[311010934,1704865832810,-268.325847,0.00019187,2]
[311010936,1704865832820,-178.419954,0.00019653,2]
[311010938,1704865832829,-1210.85136322,0.00019796,2]
[311010940,1704865832839,-645.18829157,0.00019797,2]
[311010943,1704865832852,-3745.0434135,0.00019797,2]
[311010945,1704865832864,-540.20338367,0.00019797,2]
[311010992,1704865838742,-154.93802479,0.00018894,2]
[311010993,1704865838752,-1019.81964518,0.00019797,2]
[311010994,1704865838760,-239.99365941,0.00019797,2]
[311010995,1704865838770,-266.19065175,0.0002,2]
[311010996,1704865838779,-1195.09669838,0.0002,2]
[311010997,1704865838788,-853.57612089,0.0002,2]
[311010998,1704865838797,-23115.51727295,0.00020958,2]
[311010999,1704865838806,-280.5218267,0.00020973,2]
[311011000,1704865838815,-326.73090334,0.00021775,2]
[311011001,1704865838826,-2079.63666476,0.00021776,2]
[311011002,1704865838835,-300.0,0.00021776,2]
[311011003,1704865838844,-200.0,0.00021776,2]
[311011004,1704865838853,-1821.85168105,0.00021776,2]
[311011005,1704865838862,-166.666666,0.00021918,2]
[311011006,1704865838871,-9747.2,0.00021989,3]
[311011007,1704865838880,-8122.67,0.00021989,3]
[311011008,1704865838889,-6768.89,0.00021989,3]
[311011009,1704865838898,-1308.146355,0.00021989,2]
[311011010,1704865838906,-1308.146355,0.00021989,2]
[311011011,1704865838915,-1417.577826,0.00021997,2]
[311011012,1704865838924,-19.49172855,0.00021997,2]
[311011025,1704865841711,-995.30398408,0.00021997,2]
[311011026,1704865841723,-402.78211337,0.00021997,2]
[311011027,1704865841732,-689.98114154,0.00021997,2]
[311011028,1704865841742,-391.06937792,0.00021997,2]
[311011038,1704865843674,-518.325847,0.00021997,2]
[311011039,1704865843687,-125.41501061,0.00021997,2]
[311011040,1704865843697,-301.18213313,0.00021997,2]
[311011041,1704865843707,-365.9052674,0.00021997,2]
[311011042,1704865843716,-2724.63101407,0.00021998,2]
[311011043,1704865843726,-3250.85690356,0.00021998,2]
[311011044,1704865843736,-1417.577826,0.00021998,2]
[311011045,1704865843745,-1417.577826,0.00021998,2]
[311011046,1704865843755,-778.99604154,0.00021998,2]
[311011047,1704865843778,-529.15031346,0.00021998,2]
[311011048,1704865843788,-1308.146355,0.00021998,2]
[311011049,1704865843798,-500.0,0.00021999,2]
[311011050,1704865843807,-47.70333154,0.00021999,2]
[311011051,1704865843819,-452.29666846,0.00021999,2]
[311011052,1704865843829,-1417.577826,0.00021999,2]
[311011053,1704865843839,-1417.577826,0.00021999,2]
[311011054,1704865843848,-1308.146355,0.00021999,2]
[311011055,1704865843858,-1308.146355,0.00021999,2]
[311011056,1704865843867,-1308.146355,0.00021999,2]
[311011057,1704865843877,-1308.146355,0.00021999,2]
[311011058,1704865843886,-6289.92805531,0.00021999,2]
[311011090,1704866035042,-4482.66156177,0.0001631,2]
[311011091,1704866035187,-91.48288902,0.0001631,2]
[311011092,1704866050698,206.90565579,0.000125,2]
[311011110,1704866780104,5000.0,0.00029,30]
[311011111,1704866784695,4858.11272301,0.000125,2]
[311011112,1704866790764,7141.6973925,0.00012125,2]
[311011116,1704866818411,3212.00762494,0.000125,2]
[311011117,1704866823133,1379.47554602,0.000125,2]
[311011118,1704866831704,5210.03643091,0.000125,2]
[311011119,1704866837217,154.92253873,0.000125,2]
[311011120,1704866837378,342.40737445,0.000125,2]
[311011121,1704866838384,3212.00762494,0.000125,2]
[311011123,1704866846953,1273.29555953,0.000125,2]
[311011124,1704866853500,3831.52999447,0.000125,2]
[311011125,1704866853698,351.9237079,0.000125,2]
[311011126,1704866854376,1816.0112094,0.000125,2]
[311011127,1704866855210,178.57699474,0.000125,2]
[311011128,1704866855378,315.84370906,0.000125,2]
[311011129,1704866859971,-535.8454634,0.00015,2]
[311011130,1704866860263,-10.9356217,0.00015,2]
[311011131,1704866873487,2702.72253576,0.000125,2]
[311011132,1704866878113,-248.49974141,0.00015,2]
[311011133,1704866878408,-5.07142329,0.00015,2]
[311011179,1704867031896,-154.92253873,0.00019751,3]
[311011181,1704867031908,-872.56977946,0.00019752,2]
[311011184,1704867031918,-242.59429943,0.00019753,2]
[311011186,1704867031927,-1903.22841677,0.00019797,2]
[311011188,1704867031937,-416.92724457,0.00019899,2]
[311011191,1704867031947,-266.19065175,0.0002,2]
[311011193,1704867031956,-853.57612089,0.0002,2]
[311011195,1704867031967,-236.79527182,0.00020994,2]
[311011197,1704867031977,-154.92253873,0.00020995,2]
[311011198,1704867031988,-1195.09669838,0.00020995,2]
[311011199,1704867031998,-326.73090334,0.00021118,2]
[311011200,1704867032008,-223.622,0.00021119,2]
[311011201,1704867032019,-223.623,0.00021119,2]
[311011202,1704867032029,-223.622,0.00021119,2]
[311011203,1704867032039,-223.623,0.00021119,2]
[311011204,1704867032050,-223.623,0.00021119,2]
[311011205,1704867032060,-151.4394318,0.00021516,2]
[311011206,1704867032070,-3498.1239256,0.00021557,2]
[311011207,1704867032080,-816.631,0.00021559,2]
[311011208,1704867032090,-816.631,0.00021559,2]
[311011209,1704867032100,-816.632,0.00021559,2]
[311011210,1704867032110,-816.631,0.00021559,2]
[311011211,1704867032120,-816.632,0.00021559,2]
[311011212,1704867032130,-166.666666,0.00021918,2]
[311011213,1704867032140,-3988.96,0.00021989,3]
[311011214,1704867032149,-4232.73,0.00021989,3]
[311011215,1704867032158,-3527.27,0.00021989,3]
[311011216,1704867032168,-5079.27,0.0002199,3]
[311011217,1704867032177,-332.11301448,0.00021997,2]
[311011218,1704867032187,-155.56068245,0.00021997,2]
[311011219,1704867032197,-2055.65250322,0.00021997,2]
[311011220,1704867032207,-365.9052674,0.00021997,2]
[311011221,1704867032216,-309.76768121,0.00021997,2]
[311011222,1704867032225,-1234.76,0.00021997,2]
[311011223,1704867032234,-155.04415154,0.00021997,2]
[311011224,1704867032243,-2994.25505405,0.00021997,2]
[311011225,1704867032252,-3008.39923082,0.00021998,2]
[311011226,1704867032262,-32228.43072168,0.00021999,2]
[311011227,1704867032274,-360.12535493,0.00021999,2]
[311011232,1704867038050,-2357.546591,0.00021999,2]
[311011234,1704867038060,-1821.85168105,0.00021999,2]
[311011236,1704867038069,-1116.70897326,0.00021999,2]
[311011240,1704867038107,-681.32860443,0.00021999,2]
[311011241,1704867038119,-281.59908707,0.00021999,2]
[311011242,1704867038128,-200.0,0.00021999,2]
[311011243,1704867038138,-300.0,0.00021999,2]
[311011244,1704867038147,-3931.75997852,0.00022,2]
[311011245,1704867038156,-4917.8600325,0.00022,2]
[311011246,1704867038165,-156.86767994,0.00022,2]
[311011247,1704867038174,-292.83058016,0.00022,4]
[311011248,1704867038184,-450.0,0.00022,2]
[311011249,1704867038193,-450.0,0.00022,2]
[311011250,1704867038202,-151.0,0.00022,2]
[311011251,1704867038211,-992.304478,0.00022,2]
[311011252,1704867038221,-992.304478,0.00022,2]
[311011253,1704867038230,-10264.88334633,0.00022221,2]
[311011254,1704867038239,-450.0,0.00022221,2]
[311011255,1704867038248,-450.0,0.00022221,2]
[311011256,1704867038258,-151.0,0.00022221,2]
[311011257,1704867038267,-992.304478,0.00022221,2]
[311011258,1704867038276,-992.304478,0.00022221,2]
[311011259,1704867038286,-784.887813,0.00022221,2]
[311011260,1704867038295,-784.887813,0.00022221,2]
[311011261,1704867038305,-166.666666,0.00022431,2]
[311011262,1704867038315,-687.59711705,0.000227,2]
[311011264,1704867038324,-450.0,0.00022944,2]
[311011266,1704867038333,-450.0,0.00022944,2]
[311011267,1704867038342,-196.534157,0.00022944,2]
[311011268,1704867038351,-992.304478,0.00022944,2]
[311011270,1704867038361,-992.304478,0.00022944,2]
[311011272,1704867038371,-166.666666,0.00022944,2]
[311011274,1704867038380,-784.887813,0.00022944,2]
[311011276,1704867038389,-784.887813,0.00022944,2]
[311011278,1704867038398,-2093.08732709,0.00023,2]
[311011280,1704867038407,-9920.80434626,0.00023,2]
[311011282,1704867038420,-450.0,0.00023,2]
[311011284,1704867038429,-450.0,0.00023,2]
[311011286,1704867038438,-450.0,0.00023,2]
[311011288,1704867038447,-349.31113857,0.00023,2]
[311011462,1704867040884,-100.68886143,0.00023,2]
[311011464,1704867040894,-992.304478,0.00023,2]
[311011466,1704867040903,-992.304478,0.00023,2]
[311011468,1704867040912,-581.18705414,0.00023,2]
[311011498,1704867042871,-260.04425413,0.00023,2]
[311011499,1704867042883,-151.07316973,0.00023,2]
[311011500,1704867042892,-992.304478,0.00023,2]
[311011501,1704867042901,-784.887813,0.00023,2]
[311011502,1704867042910,-784.887813,0.00023,2]
[311011503,1704867042919,-784.887813,0.00023,2]
[311011504,1704867042928,-784.887813,0.00023,2]
[311011505,1704867042937,-267.65531266,0.0002304,2]
[311011506,1704867042946,-330.60831243,0.00023188,2]
[311011507,1704867042955,-784.887813,0.00023225,2]
[311011508,1704867042965,-784.887813,0.00023225,2]
[311011509,1704867042974,-705.03184917,0.00023225,2]
[311011684,1704868232013,-266.19065175,0.00020854,2]
[311011685,1704868232023,-154.92253873,0.00020854,4]
[311011686,1704868232032,-295.2964907,0.00020855,2]
[311011718,1704868238210,-558.27963019,0.00020855,2]
[311011720,1704868238220,-277.95149638,0.000209,2]
[311011722,1704868238229,-1584.11174833,0.0002117,2]
[311012003,1704868243172,-2433.08608773,0.0002117,2]
[311012080,1704869435010,-159.31921027,0.00015876,2]
[311012081,1704869435020,-164.24940589,0.00019067,2]
[311012082,1704869435030,-154.90705577,0.00019067,3]
[311012083,1704869435039,-1024.5237895,0.00019068,2]
[311012084,1704869435049,-154.90705577,0.00019068,2]
[311012085,1704869435059,-185.30099759,0.0001907,2]
[311012086,1704869435068,-177.255245,0.000196,2]
[311012087,1704869435078,-24900.0,0.00019765,2]
[311012088,1704869435088,-1195.09669838,0.0002,2]
[311012089,1704869435098,-266.19065175,0.00020275,2]
[311012090,1704869435109,-207.8220593,0.00020276,2]
[311012091,1704869435119,-264.48664992,0.0002107,2]
[311012092,1704869435128,-1957.18,0.0002116,3]
[311012093,1704869435138,-398.93384627,0.00021168,2]
[311012094,1704869435148,-1554.75394377,0.00021168,2]
[311012095,1704869435157,-312.91539313,0.00021168,2]
[311012096,1704869435167,-349.60063365,0.00021168,2]
[311012097,1704869435176,-458.56514418,0.00021168,2]
[311012098,1704869435186,-606.52275476,0.00021168,2]
[311012099,1704869435195,-111.35124744,0.00021169,2]
[311012349,1704869441209,-187.23684161,0.00021127,2]
[311012351,1704869441218,-43.55939896,0.00021169,2]
[311012353,1704869441227,-2816.63103422,0.00021169,2]
[311012549,1704869443292,-2323.91391231,0.00021169,2]
[311012632,1704869446503,-2655.67270995,0.0002116,3]
[311012809,1704870079218,150.89437394,0.00028992,30]
[311012812,1704870162105,2500.0,0.00025,14]